bitfinex-derivatives/quotes_BTCF0:USTF0_20241029
["timestamp","ask_amount","ask_price","bid_price","bid_amount"]
[1730233888792,0.10348401,71979.0,71978.0,0.0161664]
[1730233888991,0.10348401,71979.0,71974.0,0.430999]
[1730233888992,0.069476,71978.0,71974.0,0.430999]
[1730233889193,0.03400901,71977.0,71974.0,0.3608]
[1730233889389,0.10348701,71976.0,71975.0,0.16006493]
[1730233890200,0.03400901,71976.0,71975.0,0.16006493]
[1730233890495,0.03400901,71976.0,71975.0,0.22954293]
[1730233890796,0.069478,71976.0,71975.0,0.16006493]
[1730233892392,0.069474,71980.0,71976.0,0.069477]
[1730233892594,0.3608,71982.0,71976.0,0.069477]
[1730233892797,0.069476,71978.0,71977.0,0.1466545]
[1730233893191,0.069473,71981.0,71977.0,0.2161305]
[1730233893493,0.069474,71980.0,71978.0,0.069475]
[1730233893795,0.3608,71982.0,71979.0,0.069475]
[1730233893987,0.3608,71988.0,71980.0,0.3608]
[1730233894197,0.069469,71985.0,71980.0,0.430273]
[1730233894393,0.069469,71985.0,71981.0,0.1482585]
[1730233894896,0.069469,71985.0,71981.0,0.2177315]
[1730233895307,0.069469,71985.0,71981.0,0.1482585]
[1730233895502,0.20015547,71991.0,71981.0,0.1482585]
[1730233895695,0.069464,71990.0,71985.0,0.069468]
[1730233895898,0.069465,71989.0,71981.0,0.1482585]
[1730233896203,0.069462,71993.0,71991.0,0.069463]
[1730233896409,0.069458,71997.0,71994.0,0.06946]
[1730233896704,0.069458,71997.0,71995.0,0.15870731]
[1730233896997,0.20015547,72002.0,71998.0,0.069456]
[1730233897202,0.26960847,72002.0,71998.0,0.430256]
[1730233897499,0.069453,72002.0,71999.0,0.15870731]
[1730233897688,0.00120001,72013.0,72004.0,0.069451]
[1730233897892,0.00120001,72013.0,72012.0,0.069443]
[1730233898194,0.069433,72022.0,72018.0,0.069437]
[1730233898515,0.12652,72025.0,72022.0,0.069432]
[1730233898814,0.03400553,72024.0,72021.0,0.3608]
[1730233898992,0.069433,72022.0,72017.0,0.1186]
[1730233899295,0.069437,72018.0,72017.0,0.1186]
[1730233899491,0.10344253,72018.0,72017.0,0.1186]
[1730233899692,0.10344253,72018.0,72017.0,0.29443484]
[1730233900104,0.10344253,72018.0,72017.0,0.0161459]
[1730233900292,0.10344253,72018.0,72012.0,0.3608]
[1730233900293,0.0766342,72018.0,72012.0,0.3608]
[1730233900493,0.20015547,72020.0,72012.0,0.3608]
[1730233900494,0.069442,72013.0,72012.0,0.3608]
[1730233900694,0.10345264,72013.0,72012.0,0.3608]
[1730233901108,0.03401064,72013.0,72004.0,0.3608]
[1730233901303,0.069449,72006.0,72005.0,0.11844]
[1730233901599,0.069449,72006.0,72005.0,0.27741922]
[1730233901809,0.03401466,72006.0,72005.0,0.06945]
[1730233902101,0.20015547,72016.0,72011.0,0.069443]
[1730233902102,0.06944,72016.0,72011.0,0.069443]
[1730233902301,0.03401182,72015.0,72011.0,0.069443]
[1730233902491,0.03401182,72014.0,72011.0,0.069443]
[1730233902689,0.03401182,72013.0,72011.0,0.069443]
[1730233902892,0.06944,72016.0,72011.0,0.069443]
[1730233902893,0.03401182,72012.0,72011.0,0.069443]
[1730233903096,0.03401182,72012.0,72011.0,0.430243]
[1730233904006,0.10345482,72012.0,72011.0,0.3608]
[1730233904410,0.03401182,72012.0,72005.0,0.11916]
[1730233904595,0.069449,72006.0,72004.0,0.37735522]
[1730233904799,0.069448,72007.0,72006.0,0.16117858]
[1730233905101,0.069448,72007.0,72005.0,0.27961858]
[1730233905298,0.069448,72007.0,72005.0,0.11844]
[1730233905299,0.03401295,72006.0,72005.0,0.11844]
[1730233905603,0.03401295,72006.0,72005.0,0.26781889]
[1730233905908,0.069448,72007.0,72005.0,0.26781889]
[1730233906592,0.20015547,72020.0,72005.0,0.26781889]
[1730233906797,0.37723677,72023.0,72006.0,0.20015547]
[1730233907007,1.5,72018.0,72006.0,0.20015547]
[1730233907206,1.5,72018.0,72007.0,0.14614718]
[1730233907508,0.069441,72015.0,72011.0,0.069443]
[1730233908909,0.06944,72015.0,72005.0,0.13489796]
[1730233909110,0.06944,72015.0,72010.0,0.069444]
[1730233910914,0.069441,72014.0,72010.0,0.069444]
[1730233911504,0.32095547,72019.0,72010.0,0.069444]
[1730233911807,0.069443,72012.0,72010.0,0.069444]
[1730233912616,0.069441,72014.0,72012.0,0.069442]
[1730233913209,1.50120001,72022.0,72013.0,0.20015547]
[1730233913410,0.124,72031.0,72022.0,0.069433]
[1730233913716,0.069427,72029.0,72026.0,0.069429]
[1730233913912,0.069428,72028.0,72026.0,0.069429]
[1730233914112,0.20015547,72036.0,72022.0,0.11844]
[1730233914314,1.50120001,72039.0,72027.0,0.069427]
[1730233914315,0.069425,72031.0,72027.0,0.069427]
[1730233914611,1.50120001,72039.0,72023.0,0.22716369]
[1730233914612,0.06943,72026.0,72023.0,0.22716369]
[1730233914813,0.06943,72026.0,72024.0,0.069431]
[1730233915111,0.06943,72026.0,72024.0,0.22215113]
[1730233915313,0.06943,72026.0,72025.0,0.06943]
[1730233916217,0.069426,72030.0,72026.0,0.069429]
[1730233916405,1.50120001,72039.0,72032.0,0.069423]
[1730233916716,1.50120001,72039.0,72029.0,0.069426]
[1730233916717,0.069418,72038.0,72029.0,0.069426]
[1730233916909,0.069424,72032.0,72029.0,0.069426]
[1730233917416,0.069424,72031.0,72029.0,0.069426]
[1730233917802,0.069427,72028.0,72027.0,0.3608]
[1730233918312,0.069427,72028.0,72027.0,0.51557288]
[1730233919709,0.069427,72028.0,72027.0,0.58500088]
[1730233920214,0.069427,72028.0,72027.0,0.51557288]
[1730233922213,1.5,72039.0,72035.0,0.06942]
[1730233922410,0.00208338,72040.0,72039.0,0.069417]
[1730233922608,0.069407,72050.0,72046.0,0.069409]
[1730233922812,0.481,72058.0,72050.0,0.069406]
[1730233922813,1.5,72057.0,72050.0,0.069406]
[1730233923008,1.5,72057.0,72049.0,0.20015547]
[1730233923009,0.069403,72054.0,72049.0,0.20015547]
[1730233923211,1.5694,72057.0,72051.0,0.146433]
[1730233923405,1.5694,72057.0,72049.0,0.20015547]
[1730233923406,0.069404,72053.0,72050.0,0.146433]
[1730233923710,0.069405,72052.0,72049.0,0.069407]
[1730233923908,0.069405,72052.0,72050.0,0.14433405]
[1730233924318,0.069405,72051.0,72050.0,0.14433405]
[1730233926013,1.981,72058.0,72050.0,0.14433405]
[1730233926212,0.3608,72070.0,72055.0,0.20015547]
[1730233926412,0.069391,72066.0,72061.0,0.069395]
[1730233926620,0.3608,72070.0,72060.0,0.20015547]
[1730233926621,0.3608,72070.0,72062.0,0.069394]
[1730233926814,0.3608,72070.0,72062.0,0.14978135]
[1730233927116,0.069389,72068.0,72064.0,0.069393]
[1730233927325,0.3608,72070.0,72065.0,0.20015547]
[1730233927524,0.3608,72070.0,72065.0,0.34993682]
[1730233927815,0.3608,72070.0,72060.0,0.31855547]
[1730233928026,0.069392,72066.0,72062.0,0.069394]
[1730233928221,0.069392,72066.0,72062.0,0.22738799]
[1730233928408,0.3608,72070.0,72065.0,0.20015547]
[1730233928721,1.5,72074.0,72072.0,0.069385]
[1730233928906,0.6063,72086.0,72073.0,0.36806067]
[1730233928907,0.36200001,72086.0,72073.0,0.36806067]
[1730233929111,0.00208149,72094.0,72083.0,0.069374]
[1730233929112,0.04368322,72085.0,72083.0,0.069374]
[1730233929309,0.00208149,72094.0,72083.0,0.069374]
[1730233929310,0.03409931,72084.0,72083.0,0.069374]
[1730233929515,0.03409931,72091.0,72085.0,0.069372]
[1730233929721,0.03461169,72091.0,72086.0,0.11836]
[1730233929920,0.03461169,72090.0,72086.0,0.27259593]
[1730233930218,0.06937,72088.0,72086.0,0.27259593]
[1730233930406,0.03461169,72087.0,72086.0,0.27259593]
[1730233930614,0.03461169,72087.0,72086.0,0.34196693]
[1730233931111,0.069341,72118.0,72095.0,0.069362]
[1730233931312,0.3548,72120.0,72117.0,0.069342]
[1730233931513,0.3548,72120.0,72108.0,0.3608]
[1730233931514,0.3548,72120.0,72119.0,0.26949547]
[1730233931718,0.3548,72120.0,72119.0,0.38773547]
[1730233931915,0.3548,72120.0,72119.0,0.5407978]
[1730233933115,0.430127,72133.0,72119.0,0.4714578]
[1730233933315,0.3608,72133.0,72125.0,0.20015547]
[1730233933508,0.069339,72120.0,72119.0,0.00072]
[1730233933711,0.069339,72120.0,72111.0,0.01611688]
[1730233933712,0.069346,72113.0,72111.0,0.01611688]
[1730233933916,0.3608,72114.0,72106.0,0.069351]
[1730233934118,0.430145,72114.0,72112.0,0.15906478]
[1730233934320,0.430145,72114.0,72111.0,0.1182]
[1730233934518,0.430145,72114.0,72110.0,0.20015547]
[1730233934519,0.3608,72114.0,72110.0,0.20015547]
[1730233934714,0.3608,72114.0,72112.0,0.14540263]
[1730233935018,0.3608,72114.0,72111.0,0.26360263]
[1730233935217,0.3608,72114.0,72111.0,0.1182]
[1730233935520,0.069346,72113.0,72112.0,0.14540263]
[1730233935714,0.3608,72114.0,72112.0,0.20015547]
[1730233935917,0.3608,72114.0,72113.0,0.31835547]
[1730233936227,0.3608,72120.0,72113.0,0.31835547]
[1730233936423,0.3608,72120.0,72118.0,0.20015547]
[1730233936930,0.3608,72120.0,72119.0,0.16082527]
[1730233937511,0.3608,72120.0,72117.0,0.069341]
[1730233937716,0.3608,72128.0,72118.0,0.1519479]
[1730233937925,0.069334,72125.0,72117.0,0.069341]
[1730233938119,0.069334,72125.0,72118.0,0.1519479]
[1730233938323,0.069337,72123.0,72118.0,0.1519479]
[1730233938721,0.069337,72122.0,72115.0,0.3608]
[1730233938927,0.069337,72122.0,72115.0,0.52612787]
[1730233939127,0.069337,72122.0,72115.0,0.37678503]
[1730233939322,0.069337,72122.0,72116.0,0.14934284]
[1730233939627,0.069338,72121.0,72116.0,0.14934284]
[1730233939930,0.3608,72128.0,72116.0,0.14934284]
[1730233940229,0.069335,72125.0,72118.0,0.20015547]
[1730233940433,1.5,72124.0,72118.0,0.20015547]
[1730233940724,1.5,72124.0,72123.0,0.26949147]
[1730233941125,0.3608,72137.0,72123.0,0.83295754]
[1730233941331,0.3608,72137.0,72136.0,0.26947847]
[1730233941631,0.069308,72153.0,72136.0,1.31049516]
[1730233941824,0.069308,72152.0,72146.0,0.069314]
[1730233942016,1.569304,72156.0,72150.0,0.20015547]
[1730233942333,0.3608,72160.0,72155.0,0.20015547]
[1730233942722,0.20015547,72157.0,72156.0,0.153834]
[1730233942920,0.069308,72152.0,72151.0,0.11812]
[1730233943138,0.069312,72148.0,72147.0,0.153834]
[1730233943432,0.56095547,72152.0,72141.0,0.01649747]
[1730233943433,0.92295548,72152.0,72141.0,0.01649747]
[1730233943633,0.3608,72143.0,72134.0,0.11812]
[1730233943833,0.3608,72143.0,72136.0,0.15411195]
[1730233944136,0.3608,72143.0,72135.0,0.27223195]
[1730233944321,0.069319,72141.0,72137.0,0.15411195]
[1730233944524,0.069319,72141.0,72136.0,0.15411195]
[1730233944723,0.069319,72141.0,72135.0,0.11812]
[1730233944922,0.069319,72141.0,72134.0,0.069325]
[1730233945134,0.3608,72143.0,72137.0,0.20015547]
[1730233945425,0.3608,72143.0,72135.0,0.11812]
[1730233945426,0.3608,72143.0,72142.0,0.26947347]
[1730233945822,0.430117,72143.0,72142.0,0.14658466]
[1730233946029,0.069318,72142.0,72141.0,0.11812]
[1730233946232,0.3608,72143.0,72141.0,0.11812]
[1730233946426,0.3608,72143.0,72142.0,0.26947347]
[1730233946934,0.3608,72143.0,72142.0,0.42435632]
[1730233947120,0.3608,72143.0,72142.0,0.15488285]
[1730233947331,0.069319,72141.0,72140.0,0.01597644]
[1730233947528,0.36200001,72143.0,72134.0,0.069325]
[1730233947730,0.069321,72138.0,72137.0,0.15897905]
[1730233947934,0.069321,72138.0,72129.0,0.20015547]
[1730233947935,0.069323,72137.0,72132.0,0.15897905]
[1730233948120,0.3608,72134.0,72131.0,0.069328]
[1730233948324,0.3608,72134.0,72129.0,0.20015547]
[1730233948526,0.3608,72134.0,72133.0,0.069326]
[1730233949035,0.069326,72133.0,72129.0,0.01619781]
[1730233949235,0.3608,72134.0,72126.0,0.069332]
[1730233949531,0.069327,72132.0,72131.0,0.1455127]
[1730233949731,0.069328,72131.0,72127.0,0.1455127]
[1730233949925,0.069328,72131.0,72127.0,0.069332]
[1730233950124,0.069328,72131.0,72127.0,0.21908146]
[1730233950333,0.430126,72134.0,72129.0,0.06933]
[1730233950727,0.430126,72134.0,72130.0,0.1570015]
[1730233950923,0.3608,72134.0,72132.0,0.069327]
[1730233951128,0.3608,72134.0,72133.0,0.069326]
[1730233951529,0.3608,72134.0,72133.0,0.26948147]
[1730233952627,0.3608,72134.0,72125.0,0.37742917]
[1730233952828,0.069337,72122.0,72121.0,0.0714996]
[1730233953132,0.430137,72122.0,72121.0,0.0714996]
[1730233953933,0.3608,72122.0,72121.0,0.0714996]
[1730233954734,0.3608,72128.0,72121.0,0.48593966]
[1730233954930,0.3608,72128.0,72127.0,0.26948747]
[1730233955136,0.3608,72128.0,72127.0,0.38760747]
[1730233955332,0.3608,72128.0,72127.0,0.60197406]
[1730233956330,0.069326,72134.0,72127.0,0.53264206]
[1730233956537,0.069326,72134.0,72131.0,0.069328]
[1730233956838,0.069326,72134.0,72132.0,0.15275806]
[1730233957828,0.61603547,72133.0,72128.0,0.06942]
[1730233958038,0.069337,72122.0,72121.0,0.0020796]
[1730233958233,0.63029247,72122.0,72121.0,0.0020796]
[1730233958438,0.430137,72122.0,72121.0,0.0020796]
[1730233958839,0.46409608,72122.0,72121.0,0.0020796]
[1730233959034,0.430137,72122.0,72121.0,0.0020796]
[1730233961149,0.069339,72120.0,72116.0,0.01630922]
[1730233961338,0.3608,72122.0,72112.0,0.20015547]
[1730233961539,0.069339,72120.0,72116.0,0.069342]
[1730233962340,0.06934,72119.0,72112.0,0.26950147]
[1730233962541,0.06934,72119.0,72113.0,0.069345]
[1730233962745,0.06934,72119.0,72113.0,0.22940921]
[1730233963247,0.06934,72119.0,72113.0,0.16006421]
[1730233963443,0.06934,72119.0,72115.0,0.069344]
[1730233963649,0.3608,72122.0,72113.0,0.16006421]
[1730233963946,0.3608,72122.0,72121.0,0.069338]
[1730233964350,0.3608,72122.0,72121.0,0.22887312]
[1730233964546,0.3608,72122.0,72121.0,0.15953512]
[1730233964934,0.3608,72122.0,72119.0,0.06934]
[1730233965138,0.3608,72122.0,72120.0,0.16061807]
[1730233965340,0.3608,72122.0,72119.0,0.06934]
[1730233965738,0.3608,72122.0,72120.0,0.16061807]
[1730233966336,0.069338,72121.0,72120.0,0.16061807]
[1730233966538,0.06934,72120.0,72114.0,0.15859838]
[1730233966739,0.3608,72122.0,72113.0,0.15859838]
[1730233967041,0.3608,72122.0,72121.0,0.069338]
[1730233967345,0.431411,72129.0,72121.0,0.069338]
[1730233967346,0.3608,72129.0,72128.0,0.069331]
[1730233967539,0.3608,72129.0,72128.0,0.26948647]
[1730233967740,0.3608,72129.0,72121.0,0.51580962]
[1730233967741,1.27687547,72129.0,72121.0,0.01729393]
[1730233967945,1.27687547,72129.0,72104.0,0.60238819]
[1730233967946,0.56095547,72122.0,72104.0,0.60238819]
[1730233968143,0.56095547,72122.0,72113.0,0.069346]
[1730233968144,0.3608,72114.0,72113.0,0.069346]
[1730233968450,0.3608,72122.0,72113.0,0.15119243]
[1730233968659,0.3608,72122.0,72121.0,0.069338]
[1730233968945,0.3608,72134.0,72118.0,0.20015547]
[1730233969147,0.3608,72134.0,72116.0,0.3608]
[1730233969148,0.3608,72134.0,72130.0,0.069329]
[1730233969348,0.3608,72134.0,72117.0,0.069342]
[1730233969349,0.3608,72134.0,72131.0,0.20015547]
[1730233969552,0.3608,72134.0,72133.0,0.069326]
[1730233969941,0.3608,72134.0,72133.0,0.21716832]
[1730233971047,0.3608,72146.0,72136.0,0.069323]
[1730233971253,0.069318,72142.0,72138.0,0.069321]
[1730233971446,0.3608,72146.0,72136.0,0.20015547]
[1730233971643,0.3608,72146.0,72143.0,0.069316]
[1730233971837,0.3608,72146.0,72139.0,0.11804]
[1730233972043,0.430114,72146.0,72144.0,0.14873169]
[1730233972248,0.430114,72146.0,72140.0,0.14873169]
[1730233972448,0.3608,72146.0,72140.0,0.069319]
[1730233972653,0.069317,72143.0,72139.0,0.11804]
[1730233972958,0.3608,72146.0,72139.0,0.13408976]
[1730233972959,0.20015547,72141.0,72139.0,0.13408976]
[1730233973254,0.3608,72146.0,72139.0,0.13408976]
[1730233973255,0.56095547,72146.0,72139.0,0.13408976]
[1730233973645,0.07694538,72145.0,72144.0,0.069323]
[1730233973841,0.03438924,72145.0,72144.0,0.069323]
[1730233974044,0.03438924,72145.0,72141.0,0.069325]
[1730233974248,0.03438924,72144.0,72142.0,0.069324]
[1730233974441,0.03438924,72143.0,72142.0,0.2177844]
[1730233974648,0.03438924,72143.0,72139.0,0.13408976]
[1730233974948,0.3608,72146.0,72145.0,0.069322]
[1730233975148,0.39521735,72146.0,72145.0,0.069322]
[1730233975348,0.39521735,72146.0,72145.0,0.03982181]
[1730233975349,0.43777311,72146.0,72145.0,0.03982181]
[1730233975557,0.069341,72124.0,72110.0,0.069355]
[1730233975851,0.20015547,72118.0,72109.0,0.069356]
[1730233976159,0.06935,72116.0,72111.0,0.14422926]
[1730233976550,0.06935,72116.0,72109.0,0.069356]
[1730233976750,0.06935,72116.0,72112.0,0.14422926]
[1730233977052,0.069351,72115.0,72111.0,0.15758458]
[1730233977263,0.3608,72120.0,72108.0,0.118]
[1730233977264,0.069356,72109.0,72108.0,0.118]
[1730233977456,0.069356,72109.0,72107.0,0.01605627]
[1730233977647,0.069356,72109.0,72103.0,0.118]
[1730233977648,0.03396654,72108.0,72104.0,0.069361]
[1730233977842,0.03396654,72107.0,72103.0,0.118]
[1730233978057,0.03396654,72106.0,72103.0,0.118]
[1730233978260,0.3608,72114.0,72104.0,0.15172515]
[1730233978261,0.03396654,72105.0,72104.0,0.15172515]
[1730233978557,0.3608,72114.0,72104.0,0.15172515]
[1730233978752,0.03396765,72113.0,72104.0,0.15172515]
[1730233978950,0.03396766,72112.0,72104.0,0.15172515]
[1730233979146,0.06936,72105.0,72104.0,0.26972515]
[1730233980951,0.3608,72114.0,72104.0,0.88596062]
[1730233981159,0.430145,72114.0,72113.0,0.20015547]
[1730233981351,0.3608,72114.0,72105.0,0.3608]
[1730233981552,0.069352,72106.0,72105.0,0.3608]
[1730233981956,0.069352,72106.0,72105.0,0.52059888]
[1730233984048,0.069352,72106.0,72105.0,0.63863888]
[1730233984455,0.3608,72114.0,72105.0,0.70799188]
[1730233984654,0.3608,72114.0,72113.0,0.069346]
[1730233984861,0.3608,72120.0,72119.0,0.06934]
[1730233985062,0.3608,72120.0,72119.0,0.18738]
[1730233985261,0.3608,72120.0,72119.0,0.34036295]
[1730233985460,0.069338,72121.0,72119.0,0.27102295]
[1730233985648,0.069338,72121.0,72120.0,0.069339]
[1730233985853,0.3608,72130.0,72122.0,0.069337]
[1730233986061,0.3608,72138.0,72123.0,0.20015547]
[1730233986262,0.069316,72144.0,72142.0,0.069317]
[1730233986456,0.3608,72146.0,72143.0,0.069316]
[1730233986658,0.069315,72145.0,72143.0,0.15054442]
[1730233986857,0.3608,72146.0,72143.0,0.15054442]
[1730233987160,0.3608,72146.0,72143.0,0.20015547]
[1730233987557,0.430114,72146.0,72144.0,0.15513486]
[1730233988063,0.430114,72146.0,72142.0,0.15245922]
[1730233988564,0.3608,72146.0,72143.0,0.069316]
[1730233988859,0.3608,72146.0,72141.0,0.01661845]
[1730233989063,0.3608,72146.0,72144.0,0.14749931]
[1730233989371,0.3608,72146.0,72144.0,0.069316]
[1730233989662,0.3608,72146.0,72144.0,0.14749931]
[1730233989865,0.00207994,72149.0,72145.0,0.069315]
[1730233990067,0.069312,72148.0,72145.0,0.069315]
[1730233990268,0.069312,72148.0,72146.0,0.15697428]
[1730233990561,0.00207994,72149.0,72146.0,0.22628828]
[1730233990860,0.069309,72151.0,72146.0,0.22628828]
[1730233990861,0.3608,72154.0,72148.0,0.20015547]
[1730233991067,0.3608,72170.0,72161.0,0.069299]
[1730233991261,0.069297,72163.0,72162.0,0.11788]
[1730233991469,0.03394259,72163.0,72162.0,0.33240446]
[1730233991765,0.03394259,72163.0,72162.0,0.187178]
[1730233991958,0.03394259,72163.0,72162.0,0.26205135]
[1730233992366,0.069295,72166.0,72162.0,0.26205135]
[1730233992665,0.1032359,72165.0,72162.0,0.26205135]
[1730233992865,0.0339399,72164.0,72162.0,0.26205135]
[1730233993170,0.069296,72165.0,72162.0,0.26205135]
[1730233993863,0.069292,72169.0,72162.0,0.27860633]
[1730233994062,0.069295,72166.0,72162.0,0.27860633]
[1730233995368,0.069296,72165.0,72162.0,0.27860633]
[1730233997060,0.069296,72165.0,72162.0,0.16072633]
[1730233997260,0.3608,72170.0,72163.0,0.11788]
[1730233997765,0.3608,72170.0,72164.0,0.15186955]
[1730233997967,0.069295,72166.0,72164.0,0.15186955]
[1730233998273,0.3608,72170.0,72165.0,0.20015547]
[1730233998461,0.3608,72170.0,72169.0,0.069292]
[1730233998862,0.3608,72170.0,72169.0,0.22483721]
[1730233999461,0.3608,72180.0,72169.0,0.22483721]
[1730233999658,0.069285,72177.0,72171.0,0.20015547]
[1730233999859,0.6015,72186.0,72171.0,0.20015547]
[1730234000171,0.069282,72180.0,72172.0,0.15821269]
[1730234000675,0.069282,72180.0,72172.0,0.22750069]
[1730234000971,0.069282,72180.0,72172.0,0.15821269]
[1730234001167,0.3608,72180.0,72172.0,0.15821269]
[1730234001373,0.3608,72180.0,72179.0,0.26943747]
[1730234002466,0.3608,72180.0,72179.0,0.069282]
[1730234002861,0.430082,72180.0,72178.0,0.11784]
[1730234003272,0.069282,72179.0,72178.0,0.11784]
[1730234003460,0.3608,72180.0,72176.0,0.069284]
[1730234003776,0.3608,72180.0,72179.0,0.20015547]
[1730234003978,0.3608,72180.0,72179.0,0.26943747]
[1730234005077,0.03393532,72180.0,72179.0,0.21898589]
[1730234005377,0.00207894,72184.0,72183.0,0.069278]
[1730234005775,0.00207894,72184.0,72183.0,0.21898189]
[1730234007187,0.069271,72192.0,72188.0,0.069273]
[1730234007371,0.3608,72194.0,72189.0,0.11784]
[1730234007372,0.10319877,72191.0,72189.0,0.11784]
[1730234007576,0.3608,72194.0,72191.0,0.06927]
[1730234007771,1.86200001,72203.0,72193.0,0.20015547]
[1730234007978,0.03392645,72202.0,72201.0,0.069261]
[1730234008278,0.03392645,72202.0,72201.0,0.26941647]
[1730234008481,0.3608,72209.0,72202.0,0.06926]
[1730234008683,0.00207805,72212.0,72211.0,0.069251]
[1730234008977,0.01512557,72212.0,72211.0,0.069251]
[1730234009172,0.00207805,72212.0,72211.0,0.22109257]
[1730234009674,0.3608,72217.0,72211.0,0.22109257]
[1730234009675,0.3608,72217.0,72211.0,0.26964157]
[1730234009876,0.06925,72212.0,72211.0,0.26964157]
[1730234010285,0.06925,72212.0,72211.0,0.15184157]
[1730234010782,0.06925,72212.0,72211.0,0.01332751]
[1730234011079,0.06925,72212.0,72208.0,0.1178]
[1730234011281,0.430047,72217.0,72211.0,0.15681744]
[1730234011582,0.430047,72217.0,72215.0,0.069248]
[1730234011583,0.3608,72217.0,72215.0,0.069248]
[1730234011791,0.3608,72217.0,72211.0,0.27461744]
[1730234012079,0.3608,72217.0,72211.0,0.1178]
[1730234012280,0.069249,72214.0,72211.0,0.1178]
[1730234012469,0.3608,72217.0,72212.0,0.1496198]
[1730234012668,0.430046,72217.0,72212.0,0.1496198]
[1730234012877,0.3608,72217.0,72212.0,0.1496198]
[1730234013078,0.069249,72214.0,72212.0,0.1496198]
[1730234013286,0.3608,72217.0,72212.0,0.2188698]
[1730234013483,0.430046,72217.0,72212.0,0.2188698]
[1730234013783,0.3608,72217.0,72213.0,0.187049]
[1730234013983,0.3608,72217.0,72213.0,0.27608648]
[1730234014171,0.069248,72216.0,72213.0,0.1178]
[1730234014378,0.069248,72216.0,72213.0,0.187049]
[1730234014574,0.069248,72216.0,72213.0,0.1178]
[1730234015079,0.3608,72217.0,72213.0,0.1178]
[1730234015278,0.3608,72217.0,72208.0,0.01282092]
[1730234015279,0.3608,72217.0,72214.0,0.069248]
[1730234015481,0.3608,72217.0,72215.0,0.1178]
[1730234015782,0.3608,72217.0,72215.0,0.187047]
[1730234015984,1.5,72216.0,72215.0,0.187047]
[1730234016486,0.3608,72217.0,72216.0,0.069247]
[1730234016681,0.3608,72217.0,72216.0,0.26940247]
[1730234016886,0.3608,72217.0,72216.0,0.42628634]
[1730234017188,0.3608,72217.0,72216.0,0.43937192]
[1730234018285,0.7762,72217.0,72198.0,0.3616]
[1730234018482,0.20015547,72211.0,72204.0,0.069257]
[1730234018684,0.069254,72208.0,72203.0,0.069258]
[1730234018876,1.5,72207.0,72203.0,0.069258]
[1730234019076,1.569255,72207.0,72203.0,0.187058]
[1730234019289,0.3608,72211.0,72207.0,0.069255]
[1730234019588,0.3608,72211.0,72203.0,0.1178]
[1730234019984,0.069253,72210.0,72205.0,0.069257]
[1730234020294,0.069254,72208.0,72206.0,0.1474829]
[1730234020482,1.569254,72208.0,72206.0,0.1474829]
[1730234020679,1.569254,72208.0,72207.0,0.069255]
[1730234020680,1.5,72208.0,72207.0,0.069255]
[1730234020988,0.3608,72211.0,72207.0,0.069255]
[1730234021287,0.3608,72211.0,72205.0,0.11768]
[1730234021288,0.069256,72206.0,72205.0,0.11768]
[1730234021687,0.069259,72203.0,72202.0,0.14874035]
[1730234021885,0.069259,72203.0,72201.0,0.11768]
[1730234022086,0.06926,72202.0,72201.0,0.26432291]
[1730234022384,0.06926,72202.0,72201.0,0.11768]
[1730234022585,0.06926,72202.0,72201.0,0.26432291]
[1730234022980,0.06926,72202.0,72201.0,0.14664291]
[1730234023194,0.06926,72202.0,72201.0,0.26432291]
[1730234023392,0.06926,72202.0,72201.0,0.33358391]
[1730234023593,0.069256,72206.0,72204.0,0.069257]
[1730234023894,0.069257,72205.0,72204.0,0.069257]
[1730234024394,0.069263,72199.0,72198.0,0.01287493]
[1730234024688,0.069265,72197.0,72196.0,0.00207748]
[1730234027592,1.86204001,72198.0,72191.0,0.06927]
[1730234027797,1.8608,72198.0,72187.0,0.069274]
[1730234028091,1.8608,72198.0,72187.0,0.22506129]
[1730234028286,0.06927,72193.0,72187.0,0.186954]
[1730234028487,0.069266,72196.0,72190.0,0.069271]
[1730234028682,0.069268,72194.0,72188.0,0.15578729]
[1730234028885,0.069268,72194.0,72187.0,0.11768]
[1730234028886,0.069266,72197.0,72194.0,0.069267]
[1730234029288,1.8608,72198.0,72195.0,0.069267]
[1730234029489,0.36200001,72198.0,72195.0,0.069267]
[1730234029689,0.36200001,72198.0,72196.0,0.069265]
[1730234029895,0.3608,72198.0,72196.0,0.069265]
[1730234030389,0.430064,72198.0,72196.0,0.069265]
[1730234030695,0.430064,72198.0,72187.0,0.31783547]
[1730234030696,0.3608,72198.0,72197.0,0.069265]
[1730234030894,0.3608,72207.0,72202.0,0.06926]
[1730234031203,0.3608,72207.0,72203.0,0.15040869]
[1730234031892,0.3608,72207.0,72206.0,0.069256]
[1730234032097,0.3608,72207.0,72204.0,0.069258]
[1730234032487,0.3608,72207.0,72200.0,0.11768]
[1730234032488,0.3608,72207.0,72205.0,0.15271322]
[1730234032685,0.3608,72207.0,72197.0,0.01279515]
[1730234032889,0.069265,72197.0,72194.0,0.11768]
[1730234033290,0.069265,72197.0,72194.0,0.069268]
[1730234033994,0.069265,72197.0,72195.0,0.15164526]
[1730234034783,0.069266,72196.0,72195.0,0.15164526]
[1730234037592,0.3608,72198.0,72195.0,0.15164526]
[1730234038090,0.3608,72198.0,72197.0,0.069265]
[1730234038294,0.3608,72207.0,72206.0,0.069256]
[1730234038800,0.3608,72207.0,72206.0,0.22993607]
[1730234039002,0.069252,72210.0,72206.0,0.22993607]
[1730234039296,0.3608,72215.0,72208.0,0.069253]
[1730234039598,0.3608,72215.0,72209.0,0.15258131]
[1730234039599,0.069253,72210.0,72209.0,0.15258131]
[1730234039803,0.3608,72215.0,72214.0,0.069249]
[1730234039996,0.3608,72215.0,72211.0,0.11768]
[1730234040300,0.430048,72215.0,72214.0,0.15596091]
[1730234040498,0.069249,72213.0,72212.0,0.15596091]
[1730234040697,0.20015547,72213.0,72209.0,0.13044831]
[1730234040893,0.069252,72210.0,72209.0,0.11768]
[1730234041599,0.1042207,72210.0,72209.0,0.11768]
[1730234041987,0.069258,72205.0,72195.0,0.3608]